[Event "DSAM Finale 2019"]
[Site "Magdeburg"]
[Date "2019.05.30"]
[Round "1.1"]
[White "Gikas, Andreas Basilius"]
[Black "Arnold, Max"]
[Result "0-1"]
[ECO "C48"]
[WhiteElo "2175"]
[BlackElo "2292"]
[Annotator "ChessBase"]
[PlyCount "116"]
[EventDate "2019.05.30"]
[EventType "swiss"]
[EventCountry "GER"]
[SourceTitle "playchess.com"]
[Source "ChessBase"]
[SourceQuality "1"]
[TimeControl "40/5400+30:900+30"]

1. e4 {[%emt 0:00:00]} e5 {[%emt 0:00:00]} 2. Nf3 {[%emt 0:00:00]} Nc6 {[%emt 0:00:00]} 3. Nc3 {[%emt 0:00:00]} Nf6 {[%emt 0:00:03]} 4. Bb5 {[%emt 0:00:00]} Bd6 {[%emt 0:00:57]} 5. d3 {[%emt 0:00:27]} O-O {[%emt 0:02:34]} 6. a3 {[%emt 0:00:55]} Re8 {[%emt 0:04:08]} 7. h3 {[%emt 0:03:01]} Bf8 {[%emt 0:11:30]} 8. Bg5 {[%emt 0:01:48]} a6 {[%emt 0:03:06]} 9. Bc4 {[%emt 0:02:40]} h6 {[%emt 0:01:59]} 10. Bh4 {[%emt 0:08:32]} Be7 {[%emt 0:04:59]} 11. Qc1 {[%emt 0:15:55]} d6 {[%emt 0:12:14]} 12. g4 {[%emt 0:08:22]} Nh7 {[%emt 0:04:23]} 13. Bxe7 {[%emt 0:03:20]} Nxe7 {[%emt 0:01:30]} 14. Qe3 {[%emt 0:08:28]} b5 {[%emt 0:07:27]} 15. Bb3 {[%emt 0:00:23]} Ng6 {[%emt 0:01:55]} 16. Ne2 {[%emt 0:02:23]} Be6 {[%emt 0:03:06]} 17. Bxe6 {[%emt 0:00:38]} fxe6 {[%emt 0:03:47]} 18. h4 {[%emt 0:03:32]} Rf8 {[%emt 0:01:47]} 19. O-O-O {[%emt 0:02:17]} c5 {[%emt 0:02:55]} 20. Rdg1 {[%emt 0:04:16]} Ra7 {[%emt 0:02:46]} 21. h5 {[%emt 0:05:07]} Nf4 {[%emt 0:01:39]} 22. Rg3 {[%emt 0:10:57]} Nxe2+ {[%emt 0:08:39]} 23. Qxe2 {[%emt 0:00:07]} Ng5 {[%emt 0:00:20]} 24. Nh4 {[%emt 0:06:42]} Rf6 {[%emt 0:01:47]} 25. f3 {[%emt 0:02:40]} Raf7 {[%emt 0:02:51]} 26. Kb1 {[%emt 0:00:39]} Qa5 {[%emt 0:00:46]} 27. Rf1 {[%emt 0:01:44]} Qb6 {[%emt 0:04:36]} 28. Qe3 {[%emt 0:00:35]} b4 {[%emt 0:01:57]} 29. axb4 {[%emt 0:03:48]} Qxb4 {[%emt 0:00:08]} 30. c3 {[%emt 0:02:26]} Qb3 {[%emt 0:01:42]} 31. Ng6 {[%emt 0:00:12]} a5 {[%emt 0:01:23]} 32. f4 {[%emt 0:00:28]} exf4 {[%emt 0:01:21]} 33. Rxf4 {[%emt 0:00:37]} Rxf4 {[%emt 0:02:39]} 34. Nxf4 {[%emt 0:00:02]} e5 {[%emt 0:01:09]} 35. Ne2 {[%emt 0:00:13]} Rf1+ {[%emt 0:00:15]} 36. Nc1 {[%emt 0:00:09]} a4 {[%emt 0:00:17]} 37. Rg1 {[%emt 0:01:08]} a3 {[%emt 0:00:24]} 38. Rg2 {[%emt 0:02:50]} a2+ {[%emt 0:04:02]} 39. Ka1 {[%emt 0:00:06]} Qd1 {[%emt 0:00:11]} 40. Kxa2 {[%emt 0:01:33]} Qxc1 {[%emt 0:00:11]} 41. Qxc1 {[%emt 0:15:15]} Rxc1 {[%emt 0:15:08]} 42. b4 {[%emt 0:00:59]} cxb4 {[%emt 0:00:00]} 43. cxb4 {[%emt 0:00:00]} Ne6 {[%emt 0:00:00]} 44. Kb2 {[%emt 0:00:00]} Rd1 {[%emt 0:00:00]} 45. Kc3 {[%emt 0:00:00]} Nd4 {[%emt 0:00:53]} 46. Kc4 {[%emt 0:00:00]} Kf7 {[%emt 0:02:25]} 47. Kd5 {[%emt 0:00:00]} Ke7 {[%emt 0:00:19]} 48. Ra2 {[%emt 0:00:00]} Rxd3 {[%emt 0:00:12]} 49. Ra7+ {[%emt 0:00:00]} Kf6 {[%emt 0:00:15]} 50. Kc4 {[%emt 0:00:00]} Rd1 {[%emt 0:00:48]} 51. Rd7 {[%emt 0:00:00]} Ne6 {[%emt 0:01:17]} 52. Kb5 {[%emt 0:00:00]} Rd4 {[%emt 0:00:23]} 53. Ka5 {[%emt 0:00:00]} Rxe4 {[%emt 0:00:39]} 54. b5 {[%emt 0:00:00]} Ra4+ {[%emt 0:00:43]} 55. Kb6 {[%emt 0:00:11]} e4 {[%emt 0:00:32]} 56. Rxd6 {[%emt 0:00:35]} e3 {[%emt 0:00:16]} 57. Rd3 {[%emt 0:01:02]} e2 {[%emt 0:00:33]} 58. Re3 {[%emt 0:00:38]} Nf4 {[%emt 0:00:23]} 0-1

[Event "DSAM Finale 2019"]
[Site "Magdeburg"]
[Date "2019.05.30"]
[Round "1.3"]
[White "Wiechmann, Michael"]
[Black "Vogel, Constantin"]
[Result "0-1"]
[ECO "B02"]
[WhiteElo "2012"]
[BlackElo "2073"]
[Annotator "NA"]
[PlyCount "66"]
[EventDate "2019.05.30"]
[EventType "swiss"]
[EventCountry "GER"]
[SourceTitle "playchess.com"]
[Source "ChessBase"]
[SourceQuality "1"]
[TimeControl "40/5400+30:900+30"]

{[%evp 8,65,-8,-30,-24,-27,-27,-39,32767,-25,-25,-33,-36,-35,-12,-42,2,-81,-8,-27,-23,-60,-56,-69,-78,-81,-77,-281,-297,-273,-293,-291,-287,32767,-308,32767,32767,32767,32767,32767,32767,32767,32767,32767,32767,32767,32767,32767,32767,32767,32767,-524,32767,-662,32767,-5781,-29950,-5377,-29957,-29958]} 1. e4 {[%emt 0:00:00]} Nf6 {[%emt 0:00:00]} 2. e5 {[%emt 0:00:00]} Nd5 {[%emt 0:00:00]} 3. Nc3 {[%emt 0:00:00]} Nxc3 {[%emt 0:00:00]} 4. bxc3 {[%emt 0:00:00]} d5 {[%emt 0:00:30]} 5. d4 {[%emt 0:00:17]} c5 {[%emt 0:00:39]} 6. Nf3 {[%emt 0:00:56]} Nc6 {[%emt 0:00:24]} 7. h3 {[%emt 0:02:04] B02: Alekhine's Defence: Chase Variation and lines with early Nc3} (7. Be2 c4 8. O-O e6 9. Be3 Be7 10. g3 O-O 11. Re1 b5 12. a3 a5 13. h4 f6 14. exf6 gxf6 15. Nh2 {1-0 (32) Hansen,E (2584)-Ipatov,A (2613) Rabat 2014}) 7... Bf5 {[%emt 0:02:02]} 8. Bd3 {[%emt 0:01:47]} Bxd3 {[%emt 0:00:29]} 9. Qxd3 {[%emt 0:00:12]} e6 {[%emt 0:01:07]} 10. O-O {[%emt 0:01:14]} Be7 {[%emt 0:03:00]} 11. Rb1 $146 {[%emt 0:05:11]} ({Predecessor:} 11. Be3 c4 12. Qd2 O-O 13. Nh2 b5 14. f4 Qd7 {½-½ (51) Huegle,A-Becker,A (2091) Baden 2013}) 11... Rb8 {[%emt 0:02:53]} 12. Ne1 {[%emt 0:11:38]} (12. dxc5 $1 $11 {keeps the balance.} Na5 13. Qb5+ Kf8 14. c6) 12... cxd4 {[%emt 0:05:56]} (12... O-O $17) 13. cxd4 {[%emt 0:00:15]} O-O {[%emt 0:00:05]} 14. Be3 {[%emt 0:06:25]} Qa5 {[%emt 0:02:21]} 15. Qb3 {[%emt 0:01:51]} Qa6 {[%emt 0:05:03]} 16. Nd3 {[%emt 0:08:01]} Na5 {[%emt 0:01:54]} 17. Qa4 $2 {[%emt 0:03:16]} (17. Qb5 $17 {might work better.}) 17... b5 {[%emt 0:00:23]} 18. Nb4 {[%emt 0:00:26]} Qb6 {[%emt 0:00:53]} ({Weaker is} 18... bxa4 19. Nxa6 Rb6 20. Rxb6 $15) 19. Qa3 {[%emt 0:01:36]} Nc6 {[%emt 0:02:46]} 20. Nxd5 {[%emt 0:07:21]} exd5 {[%emt 0:01:55]} ({But not} 20... Bxa3 21. Nxb6 axb6 22. Rxb5 $19) 21. Qc1 {[%emt 0:03:33]} Nxd4 {[%emt 0:02:27]} 22. Qd2 {[%emt 0:02:39]} Bc5 {[%emt 0:00:17]} 23. Rfd1 {[%emt 0:00:31]} Ne6 {[%emt 0:01:08]} 24. Bxc5 {[%emt 0:01:15]} Qxc5 {[%emt 0:00:28]} 25. Qxd5 {[%emt 0:00:38]} Qxc2 {[%emt 0:01:43]} 26. Rdc1 {[%emt 0:00:29]} Qa4 {[%emt 0:00:37]} 27. Rc6 {[%emt 0:01:34]} Rfc8 {[%emt 0:03:33]} 28. Rbc1 {[%emt 0:02:06]} Rxc6 {[%emt 0:00:40]} 29. Rxc6 {[%emt 0:00:22]} Qd4 {[%emt 0:01:07]} 30. Qd6 {[%emt 0:03:04]} (30. Qxd4 $142 Nxd4 31. Ra6) 30... Rd8 {[%emt 0:01:27]} 31. Qe7 {[%emt 0:02:31]} (31. Qxd4 $142 Rxd4 32. Ra6) 31... Qa1+ {[%emt 0:00:20]} 32. Kh2 {[%emt 0:00:18]} Qxe5+ {[%emt 0:00:05]} 33. g3 {[%emt 0:00:16]} Qd4 {[%emt 0:00:49]} 0-1

[Event "DSAM Finale 2019"]
[Site "Magdeburg"]
[Date "2019.05.30"]
[Round "1.4"]
[White "Apitzsch, Leon Fabian"]
[Black "Kermer, Ulrich"]
[Result "1-0"]
[ECO "B11"]
[WhiteElo "1972"]
[BlackElo "1933"]
[Annotator "NA"]
[PlyCount "56"]
[EventDate "2019.05.30"]
[EventType "swiss"]
[EventCountry "GER"]
[SourceTitle "playchess.com"]
[Source "ChessBase"]
[SourceQuality "1"]
[TimeControl "40/5400+30:900+30"]

{[%evp 8,30,36,20,0,24,33,29,29,32767,7,14,10,11,28,11,29,27,20,20,11,14,26,8,24]} 1. e4 {[%emt 0:00:00]} c6 {[%emt 0:00:00]} 2. Nc3 {[%emt 0:00:57]} d5 {[%emt 0:01:10]} 3. Nf3 {[%emt 0:00:06]} Bg4 {[%emt 0:02:45]} 4. h3 {[%emt 0:00:40]} Bxf3 {[%emt 0:02:16]} 5. Qxf3 {[%emt 0:00:24]} e6 {[%emt 0:02:13]} 6. d4 {[%emt 0:00:23]} dxe4 {[%emt 0:02:23]} 7. Qxe4 {[%emt 0:01:45]} Nf6 {[%emt 0:02:45]} 8. Qd3 {[%emt 0:01:20]} Be7 {[%emt 0:02:00]} 9. Be2 {[%emt 0:01:16]} O-O {[%emt 0:01:53]} 10. O-O {[%emt 0:01:10]} Nbd7 {[%emt 0:03:21]} 11. Bf4 {[%emt 0:06:39]} Nd5 {[%emt 0:04:27]} 12. Nxd5 {[%emt 0:02:40]} exd5 {[%emt 0:00:21]} 13. Rfe1 {[%emt 0:01:32]} Nf6 {[%emt 0:06:20]} 14. Bf3 {[%emt 0:08:24]} h6 {[%emt 0:07:22]} 15. Re2 {[%emt 0:06:14]} Bd6 $11 {[%emt 0:05:19]} 16. Be5 {[%emt 0:05:34]} Re8 {[%emt 0:07:16]} 17. Rae1 {[%emt 0:01:44]} Re6 {[%emt 0:10:00]} 18. g3 {[%emt 0:08:39]} Qe7 {[%emt 0:06:52]} 19. Bxd6 {[%emt 0:06:13]} Qxd6 {[%emt 0:00:18]} 20. Rxe6 {[%emt 0:01:10]} fxe6 {[%emt 0:00:08]} 21. Qg6 {[%emt 0:02:43]} Re8 {[%emt 0:03:08]} 22. Re5 {[%emt 0:06:25]} Qb4 {[%emt 0:03:32]} 23. c3 {[%emt 0:01:04]} Qxb2 {[%emt 0:02:50]} 24. g4 {[%emt 0:01:25]} Re7 {[%emt 0:03:00]} 25. g5 {[%emt 0:02:21]} hxg5 {[%emt 0:01:18]} 26. Rxg5 {[%emt 0:00:50]} Rf7 {[%emt 0:02:39]} 27. Re5 {[%emt 0:11:37]} Ne4 {[%emt 0:01:41]} 28. Qg2 {[%emt 0:02:00]} Qc1+ {[%emt 0:00:34]} 1-0

[Event "DSAM Finale 2019"]
[Site "Magdeburg"]
[Date "2019.05.30"]
[Round "1.5"]
[White "Matthes, Benjamin"]
[Black "Hielscher, Ursula"]
[Result "0-1"]
[ECO "C15"]
[WhiteElo "1737"]
[BlackElo "1780"]
[Annotator "NA"]
[PlyCount "152"]
[EventDate "2019.05.30"]
[EventType "swiss"]
[EventCountry "GER"]
[SourceTitle "playchess.com"]
[Source "ChessBase"]
[SourceQuality "1"]
[TimeControl "40/5400+30:900+30"]

1. e4 {[%emt 0:00:23]} e6 {[%emt 0:00:00]} 2. d4 {[%emt 0:06:25]} d5 {[%emt 0:00:00]} 3. Nc3 {[%emt 0:03:54]} Bb4 {[%emt 0:00:06]} 4. a3 {[%emt 0:00:10]} Bxc3+ {[%emt 0:00:27]} 5. bxc3 {[%emt 0:00:03]} dxe4 {[%emt 0:03:52]} 6. Qg4 {[%emt 0:01:10]} Nf6 {[%emt 0:00:05]} 7. Qxg7 {[%emt 0:00:51]} Rg8 {[%emt 0:00:04]} 8. Qh6 {[%emt 0:01:39]} Rg6 {[%emt 0:01:10]} 9. Qh4 {[%emt 0:19:06]} Qd5 {[%emt 0:01:42]} 10. Ne2 {[%emt 0:18:58]} Nbd7 {[%emt 0:05:05]} 11. Nf4 {[%emt 0:12:31]} Qa5 {[%emt 0:00:05]} 12. Bd2 {[%emt 0:00:07]} Rg4 {[%emt 0:00:38]} 13. Qh3 {[%emt 0:02:58]} Qf5 {[%emt 0:07:08]} 14. Qe3 {[%emt 0:16:37]} e5 {[%emt 0:10:22]} 15. dxe5 {[%emt 0:02:06]} Qxe5 {[%emt 0:01:31]} 16. Be2 {[%emt 0:02:00]} Rg7 {[%emt 0:01:22]} 17. O-O {[%emt 0:04:43]} b6 {[%emt 0:01:57]} 18. c4 {[%emt 0:03:31]} Bb7 {[%emt 0:00:43]} 19. Bc3 {[%emt 0:00:32]} Qg5 {[%emt 0:01:21]} 20. g3 {[%emt 0:01:30]} O-O-O {[%emt 0:01:03]} 21. Rad1 {[%emt 0:00:22]} Rgg8 {[%emt 0:00:30]} 22. Rd2 {[%emt 0:00:49]} h5 {[%emt 0:08:41]} 23. Nd5 {[%emt 0:00:30]} Nxd5 {[%emt 0:04:45]} 24. cxd5 {[%emt 0:00:08]} Bxd5 {[%emt 0:03:09]} 25. Qxg5 {[%emt 0:00:51]} Rxg5 {[%emt 0:00:05]} 26. Ba6+ {[%emt 0:00:33]} Kb8 {[%emt 0:05:14]} 27. Rfd1 {[%emt 0:00:06]} c6 {[%emt 0:00:20]} 28. Bb4 {[%emt 0:00:25]} Ne5 {[%emt 0:16:25]} 29. Be2 {[%emt 0:00:58]} Re8 {[%emt 0:03:34]} 30. h4 {[%emt 0:00:31]} Rf5 {[%emt 0:04:51]} 31. Bd6+ {[%emt 0:00:25]} Kb7 {[%emt 0:01:28]} 32. Bxe5 {[%emt 0:00:33]} Rfxe5 {[%emt 0:00:56]} 33. c4 {[%emt 0:00:17]} e3 {[%emt 0:01:01]} 34. fxe3 {[%emt 0:00:43]} Rxe3 {[%emt 0:01:08]} 35. cxd5 {[%emt 0:00:25]} Rxe2 {[%emt 0:00:25]} 36. dxc6+ {[%emt 0:00:15]} Kxc6 {[%emt 0:00:21]} 37. Rd6+ {[%emt 0:00:23]} Kc5 {[%emt 0:00:09]} 38. R6d5+ {[%emt 0:00:15]} Kc4 {[%emt 0:00:25]} 39. Rxh5 {[%emt 0:01:12]} R2e3 {[%emt 0:00:31]} 40. Kf2 {[%emt 0:00:33]} Rxa3 {[%emt 0:00:54]} 41. Rc1+ {[%emt 0:06:53]} Kd4 {[%emt 0:01:41]} 42. Rd1+ {[%emt 0:04:53]} Rd3 {[%emt 0:04:06]} 43. Ra1 {[%emt 0:03:22]} a5 {[%emt 0:00:44]} 44. Rb5 {[%emt 0:01:30]} Re6 {[%emt 0:00:32]} 45. Ra4+ {[%emt 0:00:51]} Kc3 {[%emt 0:00:40]} 46. h5 {[%emt 0:00:18]} Rf6+ {[%emt 0:00:32]} 47. Ke2 {[%emt 0:00:41]} Rxg3 {[%emt 0:00:40]} 48. Ra3+ {[%emt 0:00:33]} Kc4 {[%emt 0:00:04]} 49. Rbxa5 {[%emt 0:00:30]} Rg2+ {[%emt 0:00:17]} 50. Ke3 {[%emt 0:00:25]} bxa5 {[%emt 0:00:08]} 51. Rxa5 {[%emt 0:00:02]} Rg3+ {[%emt 0:00:33]} 52. Ke4 {[%emt 0:00:42]} Rg4+ {[%emt 0:00:29]} 53. Ke3 {[%emt 0:00:05]} Kb4 {[%emt 0:00:32]} 54. Ra7 {[%emt 0:01:07]} Rh4 {[%emt 0:00:37]} 55. Rb7+ {[%emt 0:00:15]} Kc5 {[%emt 0:00:16]} 56. Ra7 {[%emt 0:00:10]} Kb6 {[%emt 0:00:10]} 57. Ra1 {[%emt 0:00:31]} Rxh5 {[%emt 0:00:08]} 58. Ke4 {[%emt 0:00:33]} Re6+ {[%emt 0:00:21]} 59. Kf4 {[%emt 0:00:30]} Kc6 {[%emt 0:01:13]} 60. Ra6+ {[%emt 0:00:12]} Kd7 {[%emt 0:00:11]} 61. Ra7+ {[%emt 0:00:10]} Ke8 {[%emt 0:00:09]} 62. Ra8+ {[%emt 0:00:17]} Ke7 {[%emt 0:00:03]} 63. Rb8 {[%emt 0:00:19]} Kf6 {[%emt 0:00:16]} 64. Kg4 {[%emt 0:00:25]} Rg5+ {[%emt 0:00:16]} 65. Kf4 {[%emt 0:00:33]} Rf5+ {[%emt 0:00:09]} 66. Kg4 {[%emt 0:00:01]} Re4+ {[%emt 0:00:09]} 67. Kg3 {[%emt 0:00:03]} Ra5 {[%emt 0:00:59]} 68. Kf3 {[%emt 0:00:39]} Kf5 {[%emt 0:00:31]} 69. Rb3 {[%emt 0:00:19]} Ke5 {[%emt 0:00:56]} 70. Rd3 {[%emt 0:00:31]} f5 {[%emt 0:00:27]} 71. Rd8 {[%emt 0:00:12]} Ra3+ {[%emt 0:00:16]} 72. Kf2 {[%emt 0:00:05]} Kf4 {[%emt 0:00:12]} 73. Rd2 {[%emt 0:00:07]} Rh3 {[%emt 0:00:11]} 74. Kg2 {[%emt 0:00:23]} Kg4 {[%emt 0:00:36]} 75. Rf2 {[%emt 0:00:39]} f4 {[%emt 0:00:27]} 76. Kg1 {[%emt 0:00:11]} Re1+ {[%emt 0:01:30]} 0-1

[Event "DSAM Finale 2019"]
[Site "Magdeburg"]
[Date "2019.05.30"]
[Round "1.6"]
[White "Rose, Daniel"]
[Black "Gebhard, Andreas"]
[Result "0-1"]
[ECO "A52"]
[WhiteElo "1693"]
[BlackElo "1595"]
[Annotator "NA"]
[PlyCount "36"]
[EventDate "2019.05.30"]
[EventType "swiss"]
[EventCountry "GER"]
[SourceTitle "playchess.com"]
[Source "ChessBase"]
[SourceQuality "1"]
[TimeControl "40/5400+30:900+30"]

1. d4 {[%emt 0:00:00]} Nf6 {[%emt 0:00:00]} 2. c4 {[%emt 0:00:06]} e5 {[%emt 0:00:09]} 3. dxe5 {[%emt 0:00:38]} Ng4 {[%emt 0:00:09]} 4. Nf3 {[%emt 0:01:00]} Nc6 {[%emt 0:02:00]} 5. e3 {[%emt 0:01:34]} Ngxe5 {[%emt 0:00:08]} 6. Be2 {[%emt 0:01:31]} Bb4+ {[%emt 0:00:15]} 7. Bd2 {[%emt 0:00:57]} Bxd2+ {[%emt 0:01:39]} 8. Nbxd2 {[%emt 0:02:47]} d6 {[%emt 0:00:51]} 9. O-O {[%emt 0:00:49]} Be6 {[%emt 0:00:17]} 10. Rb1 {[%emt 0:03:35]} Qf6 {[%emt 0:03:30]} 11. Nd4 {[%emt 0:11:06]} O-O {[%emt 0:12:45]} 12. f4 {[%emt 0:07:09]} Nxd4 {[%emt 0:00:18]} 13. fxe5 {[%emt 0:00:13]} Nxe2+ {[%emt 0:00:14]} 14. Qxe2 {[%emt 0:00:33]} Qxe5 {[%emt 0:00:03]} 15. Rf4 {[%emt 0:01:55]} Rae8 {[%emt 0:03:51]} 16. Re4 {[%emt 0:01:55]} Qc5 {[%emt 0:01:47]} 17. Rh4 {[%emt 0:02:43]} Bf5 {[%emt 0:01:18]} 18. Qh5 {[%emt 0:00:59]} Qxe3+ {[%emt 0:00:38]} 0-1

[Event "DSAM Finale 2019"]
[Site "Magdeburg"]
[Date "2019.05.30"]
[Round "1.7"]
[White "Abou Wally, Adrian"]
[Black "Biele, Johanna"]
[Result "1-0"]
[ECO "B01"]
[WhiteElo "1342"]
[BlackElo "1424"]
[Annotator "NA"]
[PlyCount "161"]
[EventDate "2019.05.30"]
[EventType "swiss"]
[EventCountry "GER"]
[SourceTitle "playchess.com"]
[Source "ChessBase"]
[SourceQuality "1"]
[TimeControl "40/5400+30:900+30"]

1. e4 {[%emt 0:00:00]} d5 {[%emt 0:00:00]} 2. exd5 {[%emt 0:00:00]} Qxd5 {[%emt 0:00:00]} 3. Nc3 {[%emt 0:00:00]} Qa5 {[%emt 0:00:12]} 4. d4 {[%emt 0:00:54]} Nf6 {[%emt 0:00:27]} 5. Nf3 {[%emt 0:00:16]} Bg4 {[%emt 0:01:00]} 6. h3 {[%emt 0:01:19]} Bf5 {[%emt 0:02:29]} 7. Bf4 {[%emt 0:09:01]} e6 {[%emt 0:01:40]} 8. a3 {[%emt 0:03:59]} c6 {[%emt 0:03:51]} 9. Ne5 {[%emt 0:07:44]} Be7 {[%emt 0:06:29]} 10. Nc4 {[%emt 0:00:26]} Qd8 {[%emt 0:00:35]} 11. Bd3 {[%emt 0:00:54]} Qxd4 {[%emt 0:03:53]} 12. Be5 {[%emt 0:02:29]} Qd8 {[%emt 0:02:13]} 13. Bxf5 {[%emt 0:00:24]} Qxd1+ {[%emt 0:05:15]} 14. Rxd1 {[%emt 0:00:06]} exf5 {[%emt 0:00:25]} 15. Bd6 {[%emt 0:03:48]} Nbd7 {[%emt 0:06:44]} 16. Bxe7 {[%emt 0:01:06]} Kxe7 {[%emt 0:00:14]} 17. Nd6 {[%emt 0:00:16]} g6 {[%emt 0:04:06]} 18. O-O {[%emt 0:00:25]} b6 {[%emt 0:05:15]} 19. Rfe1+ {[%emt 0:00:14]} Kf8 {[%emt 0:00:25]} 20. Re2 {[%emt 0:02:37]} Kg7 {[%emt 0:02:41]} 21. Re7 {[%emt 0:00:40]} Rhf8 {[%emt 0:01:06]} 22. Ne2 {[%emt 0:01:42]} Nc5 {[%emt 0:05:28]} 23. Nd4 {[%emt 0:02:13]} Nd5 {[%emt 0:02:00]} 24. Re2 {[%emt 0:04:38]} Rad8 {[%emt 0:04:38]} 25. Nc4 {[%emt 0:01:11]} Nf4 {[%emt 0:04:51]} 26. Ree1 {[%emt 0:02:32]} Ne4 {[%emt 0:06:34]} 27. f3 {[%emt 0:04:25]} Ng3 {[%emt 0:07:34]} 28. Kf2 {[%emt 0:01:10]} Ngh5 {[%emt 0:02:12]} 29. Nxc6 {[%emt 0:04:46]} Rxd1 {[%emt 0:01:50]} 30. Rxd1 {[%emt 0:00:08]} Re8 {[%emt 0:00:51]} 31. Ne3 {[%emt 0:02:16]} a6 {[%emt 0:02:44]} 32. Rd8 {[%emt 0:00:40]} Re6 {[%emt 0:02:49]} 33. Nd4 {[%emt 0:01:21]} Re5 {[%emt 0:00:37]} 34. Rd6 {[%emt 0:00:59]} Nf6 {[%emt 0:01:47]} 35. Rxb6 {[%emt 0:00:54]} Rxe3 {[%emt 0:00:41]} 36. Rxf6 {[%emt 0:03:47]} Kxf6 {[%emt 0:01:05]} 37. Kxe3 {[%emt 0:00:09]} Nxg2+ {[%emt 0:00:41]} 38. Kf2 {[%emt 0:01:10]} Nf4 {[%emt 0:01:00]} 39. Kg3 {[%emt 0:01:29]} g5 {[%emt 0:00:41]} 40. c4 {[%emt 0:02:51]} h5 {[%emt 0:03:51]} 41. b4 {[%emt 0:16:17]} Ne6 {[%emt 0:18:26]} 42. Nb3 {[%emt 0:00:48]} Ke5 {[%emt 0:00:25]} 43. a4 {[%emt 0:01:53]} h4+ {[%emt 0:00:38]} 44. Kg2 {[%emt 0:33:03]} Nf4+ 45. Kh2 {[%emt 0:00:00]} Nd3 {[%emt 0:04:11]} 46. b5 {[%emt 0:00:00]} Nb4 {[%emt 0:00:39]} 47. Nc5 {[%emt 0:00:00]} axb5 {[%emt 0:00:33]} 48. cxb5 {[%emt 0:00:00]} Kd5 {[%emt 0:01:57]} 49. Nb7 {[%emt 0:00:00]} f4 {[%emt 0:00:39]} 50. a5 {[%emt 0:00:00]} Kc4 {[%emt 0:00:00]} 51. a6 {[%emt 0:00:00]} Nd5 {[%emt 0:00:00]} 52. a7 {[%emt 0:00:00]} Nb6 {[%emt 0:00:00]} 53. Nd6+ {[%emt 0:00:00]} Kc5 {[%emt 0:00:00]} 54. Nxf7 {[%emt 0:00:00]} Kxb5 {[%emt 0:00:00]} 55. Nxg5 {[%emt 0:00:00]} Ka6 {[%emt 0:00:00]} 56. Ne6 {[%emt 0:00:00]} Kxa7 {[%emt 0:00:00]} 57. Nxf4 {[%emt 0:00:00]} Kb7 {[%emt 0:00:00]} 58. Ng6 {[%emt 0:00:00]} Kc7 {[%emt 0:00:00]} 59. Nxh4 {[%emt 0:00:00]} Kd7 {[%emt 0:00:00]} 60. Kg3 {[%emt 0:00:00]} Ke6 {[%emt 0:00:00]} 61. Ng2 {[%emt 0:00:00]} Kf5 {[%emt 0:00:00]} 62. Ne3+ {[%emt 0:00:00]} Kg6 {[%emt 0:00:00]} 63. Kg4 {[%emt 0:00:00]} Nd7 {[%emt 0:00:00]} 64. Nd5 {[%emt 0:00:00]} Ne5+ {[%emt 0:00:00]} 65. Kg3 {[%emt 0:00:00]} Nf7 {[%emt 0:00:00]} 66. f4 {[%emt 0:00:00]} Kf5 {[%emt 0:00:00]} 67. Ne3+ {[%emt 0:00:00]} Kf6 {[%emt 0:00:00]} 68. Kg4 {[%emt 0:00:00]} Kg6 {[%emt 0:00:00]} 69. f5+ {[%emt 0:00:00]} Kg7 {[%emt 0:00:00]} 70. Nd5 {[%emt 0:00:00]} Nh6+ {[%emt 0:00:00]} 71. Kf4 {[%emt 0:00:00]} Kf7 {[%emt 0:00:00]} 72. Kg5 {[%emt 0:00:00]} Ng8 {[%emt 0:00:00]} 73. f6 {[%emt 0:00:00]} Nxf6 {[%emt 0:00:39]} 74. Nxf6 {[%emt 0:00:00]} Kg7 {[%emt 0:00:03]} 75. h4 {[%emt 0:00:00]} Kh8 {[%emt 0:00:12]} 76. Nd7 {[%emt 0:00:00]} Kg7 {[%emt 0:00:18]} 77. h5 {[%emt 0:00:00]} Kh7 {[%emt 0:00:28]} 78. h6 {[%emt 0:00:00]} Kg8 {[%emt 0:00:52]} 79. Kg6 {[%emt 0:00:00]} Kh8 {[%emt 0:00:06]} 80. Ne5 {[%emt 0:00:00]} Kg8 {[%emt 0:00:12]} 81. h7+ {[%emt 0:00:00]} 1-0

[Event "DSAM Finale 2019"]
[Site "Magdeburg"]
[Date "2019.05.30"]
[Round "2.1"]
[White "Arnold, Max"]
[Black "Hansch, Stephan"]
[Result "1/2-1/2"]
[ECO "B22"]
[WhiteElo "2292"]
[BlackElo "2168"]
[Annotator "ChessBase"]
[PlyCount "39"]
[EventDate "2019.05.30"]
[EventType "swiss"]
[EventCountry "GER"]
[SourceTitle "playchess.com"]
[Source "ChessBase"]
[SourceQuality "1"]
[TimeControl "40/5400+30:900+30"]

1. e4 {[%emt 0:00:00]} c5 {[%emt 0:00:00]} 2. c3 {[%emt 0:00:00]} d5 {[%emt 0:00:43]} 3. exd5 {[%emt 0:00:00]} Nf6 {[%emt 0:00:07]} 4. Bb5+ {[%emt 0:01:38]} Nbd7 {[%emt 0:03:26]} 5. d4 {[%emt 0:02:18]} Nxd5 {[%emt 0:01:29]} 6. Nf3 {[%emt 0:02:35]} e6 {[%emt 0:01:35]} 7. O-O {[%emt 0:01:51]} cxd4 {[%emt 0:01:18]} 8. Qxd4 {[%emt 0:02:12]} Qb6 {[%emt 0:03:22]} 9. Qxb6 {[%emt 0:02:35]} N5xb6 {[%emt 0:00:09]} 10. Re1 {[%emt 0:15:10]} Be7 {[%emt 0:00:45]} 11. Nbd2 {[%emt 0:05:04]} O-O {[%emt 0:00:45]} 12. Nb3 {[%emt 0:02:24]} a6 {[%emt 0:02:15]} 13. Bf1 {[%emt 0:01:46]} Nd5 {[%emt 0:07:55]} 14. Nfd4 {[%emt 0:16:44]} Nc5 {[%emt 0:02:29]} 15. Nxc5 {[%emt 0:05:01]} Bxc5 {[%emt 0:00:09]} 16. Nb3 {[%emt 0:00:16]} Bb6 {[%emt 0:00:30]} 17. a4 {[%emt 0:01:53]} Bd7 {[%emt 0:00:52]} 18. a5 {[%emt 0:00:12]} Ba7 {[%emt 0:00:06]} 19. g3 {[%emt 0:00:56]} Bc6 {[%emt 0:03:39]} 20. Bg2 {[%emt 0:09:38]} 1/2-1/2

[Event "DSAM Finale 2019"]
[Site "Magdeburg"]
[Date "2019.05.30"]
[Round "2.2"]
[White "Artola Pola, Gerardo"]
[Black "Rietze, Clemens"]
[Result "1/2-1/2"]
[ECO "C65"]
[WhiteElo "1999"]
[BlackElo "2285"]
[Annotator "ChessBase"]
[PlyCount "44"]
[EventDate "2019.05.30"]
[EventType "swiss"]
[EventCountry "GER"]
[SourceTitle "playchess.com"]
[Source "ChessBase"]
[SourceQuality "1"]
[TimeControl "40/5400+30:900+30"]

1. e4 {[%emt 0:00:00]} e5 {[%emt 0:00:00]} 2. Nf3 {[%emt 0:00:00]} Nc6 {[%emt 0:00:00]} 3. Bb5 {[%emt 0:00:00]} Nf6 {[%emt 0:00:00]} 4. d3 {[%emt 0:00:00]} Bc5 {[%emt 0:00:00]} 5. c3 {[%emt 0:00:04]} O-O {[%emt 0:00:19]} 6. O-O {[%emt 0:00:06]} d6 {[%emt 0:00:50]} 7. Nbd2 {[%emt 0:01:08]} a6 {[%emt 0:02:15]} 8. Ba4 {[%emt 0:00:19]} Ba7 {[%emt 0:00:22]} 9. Re1 {[%emt 0:00:32]} Ne7 {[%emt 0:02:41]} 10. Nf1 {[%emt 0:04:43]} Ng6 {[%emt 0:04:23]} 11. Ng3 {[%emt 0:02:23]} c6 {[%emt 0:01:37]} 12. h3 {[%emt 0:03:53]} Re8 {[%emt 0:03:03]} 13. d4 {[%emt 0:00:55]} h6 {[%emt 0:01:20]} 14. Bc2 {[%emt 0:02:46]} Qc7 {[%emt 0:05:01]} 15. Be3 {[%emt 0:01:59]} Be6 {[%emt 0:04:46]} 16. Qd2 {[%emt 0:01:16]} Kh7 {[%emt 0:00:58]} 17. Rad1 {[%emt 0:00:58]} Rad8 {[%emt 0:00:36]} 18. Qc1 {[%emt 0:00:30]} Qb8 {[%emt 0:10:40]} 19. Nf5 {[%emt 0:03:49]} Ng8 {[%emt 0:03:18]} 20. Nh2 {[%emt 0:07:43]} f6 {[%emt 0:02:48]} 21. Ng3 {[%emt 0:01:29]} Kh8 {[%emt 0:09:54]} 22. Nh5 {[%emt 0:06:27]} Bf7 {[%emt 0:03:06]} 1/2-1/2